bitfinex/quotes_BTCUSD_20220307
["timestamp","ask_amount","ask_price","bid_price","bid_amount"]
[1646689049737,0.00043279,37805.0,37798.0,0.02652]
[1646689049936,0.00543279,37809.0,37800.0,0.02652]
[1646689050134,0.00543279,37809.0,37800.0,0.07532]
[1646689050337,0.31993665,37808.0,37801.0,0.02652]
[1646689050535,0.31993665,37808.0,37803.0,0.066139]
[1646689050741,0.31993665,37808.0,37800.0,0.0488]
[1646689050742,0.70208,37807.0,37800.0,0.0488]
[1646689050936,0.23818802,37806.0,37800.0,0.0488]
[1646689051536,0.41963433,37806.0,37800.0,0.0488]
[1646689051740,0.00014974,37805.0,37797.0,0.06338963]
[1646689051937,0.00014974,37805.0,37799.0,0.066154]
[1646689052581,0.00543279,37809.0,37800.0,0.26]
[1646689052782,0.00014974,37804.0,37800.0,0.61]
[1646689052985,0.00014974,37804.0,37802.0,0.198425]
[1646689053183,0.00014974,37804.0,37803.0,0.59727666]
[1646689053384,0.00014974,37804.0,37803.0,0.62379666]
[1646689053583,0.00014974,37804.0,37803.0,0.54735143]
[1646689053782,0.00543279,37809.0,37805.0,0.02652]
[1646689053985,0.00543279,37809.0,37806.0,0.0488]
[1646689054389,0.00543279,37809.0,37807.0,0.02652]
[1646689054583,0.00543279,37809.0,37808.0,0.158785]
[1646689054785,0.00543279,37809.0,37808.0,0.182265]
[1646689054985,0.00543279,37809.0,37808.0,0.05]
[1646689055185,0.00543279,37809.0,37807.0,0.15]
[1646689055386,0.00543279,37809.0,37806.0,0.0488]
[1646689055387,1.6,37808.0,37804.0,0.0488]
[1646689055591,1.65,37808.0,37802.0,0.00100225]
[1646689055838,0.28684728,37807.0,37802.0,0.00100225]
[1646689056230,0.29806608,37806.0,37802.0,0.00100225]
[1646689056431,0.46545246,37806.0,37802.0,0.00100225]
[1646689057035,0.40208,37805.0,37802.0,0.00100225]
[1646689057434,0.47384,37805.0,37802.0,0.00100225]
[1646689057632,0.56338,37805.0,37802.0,0.00100225]
[1646689058433,0.47568409,37803.0,37802.0,0.00100225]
[1646689058633,0.52568409,37803.0,37802.0,0.00100225]
[1646689059690,1.62652,37801.0,37781.0,0.264611]
[1646689059883,0.02652,37797.0,37774.0,0.9159]
[1646689060082,0.17652,37795.0,37784.0,0.00012012]
[1646689060381,0.40208,37791.0,37784.0,0.00012012]
[1646689060580,0.51107348,37785.0,37784.0,0.00012012]
[1646689060779,0.50607348,37785.0,37784.0,0.00012012]
[1646689060980,0.50607348,37785.0,37773.0,0.3]
[1646689061181,0.50607348,37785.0,37784.0,0.00012012]
[1646689061582,0.57227848,37785.0,37784.0,0.00012012]
[1646689062186,0.25258684,37782.0,37768.0,0.432402]
[1646689062381,0.25258684,37782.0,37768.0,0.132402]
[1646689062786,0.57227848,37785.0,37784.0,0.00741316]
[1646689063080,0.80004118,37785.0,37784.0,0.00741316]
[1646689063338,0.73383618,37785.0,37784.0,0.00741316]
[1646689064338,0.5404056,37785.0,37784.0,0.00741316]
[1646689064540,0.48464135,37792.0,37784.0,0.00741316]
[1646689064541,0.4845,37792.0,37784.0,0.00741316]
[1646689064750,0.1,37791.0,37784.0,0.00741316]
[1646689065338,0.16465256,37790.0,37784.0,0.00741316]
[1646689065739,0.30657663,37788.0,37784.0,0.00741316]
[1646689065941,0.40208,37787.0,37784.0,0.00751387]
[1646689066239,0.45657663,37788.0,37784.0,0.00751387]
[1646689066438,0.07220682,37787.0,37784.0,0.00751387]
[1646689066637,0.20462682,37787.0,37784.0,0.00751387]
[1646689066837,0.22190239,37786.0,37784.0,0.00751387]
[1646689067084,0.22190239,37786.0,37784.0,0.00741316]
[1646689067386,0.22190239,37786.0,37784.0,0.00751794]
[1646689067585,0.32190239,37786.0,37784.0,0.00751794]
[1646689067782,0.47190239,37786.0,37784.0,0.00751794]
[1646689068283,0.47190239,37786.0,37784.0,0.00741316]
[1646689069781,0.32190239,37786.0,37784.0,0.00741316]
[1646689069985,0.22190239,37786.0,37784.0,0.00741316]
[1646689070684,0.37190239,37786.0,37784.0,0.00741316]
[1646689070948,0.22190239,37786.0,37784.0,0.00741316]
[1646689071152,0.27190239,37786.0,37784.0,0.00741316]
[1646689071347,0.37190239,37786.0,37784.0,0.00741316]
[1646689072345,0.36150239,37786.0,37784.0,0.00741316]
[1646689072547,0.26150239,37786.0,37784.0,0.00741316]
[1646689072746,0.02652,37785.0,37770.0,0.3]
[1646689073046,0.2135457,37783.0,37771.0,0.066204]
[1646689073245,0.26150239,37786.0,37783.0,0.36149544]
[1646689073446,0.40208,37785.0,37783.0,0.36149544]
[1646689073647,1.6,37783.0,37767.0,0.3]
[1646689073849,0.26917199,37767.0,37765.0,0.1]
[1646689074048,0.70498,37782.0,37765.0,0.1]
[1646689074049,0.25523994,37773.0,37769.0,0.44970917]
[1646689074246,0.42356971,37773.0,37769.0,0.44970917]
[1646689074446,0.69389164,37773.0,37769.0,0.44970917]
[1646689075583,0.69389164,37773.0,37769.0,0.44982977]
[1646689075983,0.52556187,37773.0,37769.0,0.44982977]
[1646689076585,0.52556187,37773.0,37769.0,0.44970917]
[1646689076785,0.52556187,37773.0,37769.0,0.44982977]
[1646689077385,0.52556187,37773.0,37769.0,0.44482977]
[1646689077886,0.22148318,37772.0,37769.0,0.44470917]
[1646689078087,0.22148318,37772.0,37769.0,0.44480952]
[1646689078327,0.52556187,37773.0,37769.0,0.44480952]
[1646689079334,0.65208,37772.0,37769.0,0.44480952]
[1646689079533,0.15741559,37771.0,37769.0,0.44480952]
[1646689079930,0.40208,37770.0,37769.0,0.44480952]
[1646689080131,0.17497275,37770.0,37769.0,0.44470917]
[1646689080332,0.15741559,37771.0,37769.0,0.44470917]
[1646689080536,0.12652,37781.0,37769.0,0.44470917]
[1646689080537,0.20590217,37778.0,37770.0,0.3]
[1646689080732,0.1529,37783.0,37770.0,0.3]
[1646689080733,0.1,37783.0,37770.0,0.3]
[1646689080933,0.15,37786.0,37770.0,0.3]
[1646689081134,0.40208,37785.0,37770.0,0.3]
[1646689081334,0.20492078,37779.0,37770.0,0.3]
[1646689081531,0.26667365,37776.0,37769.0,0.44470917]
[1646689081932,0.28472983,37770.0,37769.0,0.44470917]
[1646689082375,0.28472983,37770.0,37769.0,0.67470917]
[1646689082778,0.73680983,37770.0,37769.0,0.67470917]
[1646689083178,0.88680983,37770.0,37769.0,0.67470917]
[1646689083377,0.88680983,37770.0,37764.0,0.002]
[1646689083378,1.4,37769.0,37764.0,0.002]
[1646689083581,0.19461642,37765.0,37764.0,0.002]
[1646689084284,0.74461642,37765.0,37764.0,0.0001]
[1646689084579,0.79461642,37765.0,37764.0,0.0001]
[1646689084781,0.84751642,37765.0,37764.0,0.0001]
[1646689085379,0.69751642,37765.0,37764.0,0.0001]
[1646689085825,1.09959642,37765.0,37764.0,0.0001]
[1646689086225,0.69751642,37765.0,37764.0,0.0001]
[1646689086426,0.69751642,37765.0,37752.0,0.001]
[1646689086427,2.00208,37764.0,37752.0,0.001]
[1646689086628,0.60826725,37759.0,37752.0,0.001]
[1646689086829,0.15,37754.0,37752.0,0.001]
[1646689087026,0.40208,37753.0,37752.0,0.001]
[1646689087228,0.45498,37753.0,37752.0,0.001]
[1646689087825,0.0529,37753.0,37752.0,0.001]
[1646689088027,0.3215293,37753.0,37752.0,0.001]
[1646689088231,0.4215293,37753.0,37752.0,0.001]
[1646689088427,0.8236093,37753.0,37752.0,0.001]
[1646689088628,0.4215293,37753.0,37752.0,0.001]
[1646689088828,0.8236093,37753.0,37752.0,0.001]
[1646689089229,1.17378387,37753.0,37752.0,0.001]
[1646689089430,1.47378387,37753.0,37752.0,0.001]
[1646689089682,1.88050387,37753.0,37752.0,0.001]
[1646689090082,1.98258387,37753.0,37752.0,0.001]
[1646689090280,0.77170387,37753.0,37752.0,0.001]
[1646689090482,0.9736093,37753.0,37752.0,0.001]
[1646689090684,0.4215293,37753.0,37752.0,0.001]
[1646689091083,0.8236093,37753.0,37752.0,0.001]
[1646689091285,1.2303293,37753.0,37752.0,0.001]
[1646689091486,1.7824093,37753.0,37752.0,0.001]
[1646689092383,0.9736093,37753.0,37752.0,0.001]
[1646689092585,0.4215293,37753.0,37752.0,0.231]
[1646689092787,0.8236093,37753.0,37752.0,0.231]
[1646689093185,1.6324093,37753.0,37752.0,0.231]
[1646689093431,0.9736093,37753.0,37752.0,0.231]
[1646689093628,0.8236093,37753.0,37752.0,0.231]
[1646689093829,0.8236093,37753.0,37752.0,0.001]
[1646689094328,1.6324093,37753.0,37752.0,0.001]
[1646689094527,0.8236093,37753.0,37752.0,0.001]
[1646689094932,0.82335179,37753.0,37752.0,0.001]
[1646689096331,0.55472249,37753.0,37752.0,0.001]
[1646689097183,0.15264249,37753.0,37752.0,0.001]
[1646689097383,0.55472249,37753.0,37752.0,0.001]
[1646689097784,0.45472249,37753.0,37752.0,0.001]
[1646689097987,0.05264249,37753.0,37752.0,0.001]
[1646689098589,0.45472249,37753.0,37752.0,0.001]
[1646689098784,0.05264249,37753.0,37752.0,0.001]
[1646689098984,0.45472249,37753.0,37752.0,0.001]
[1646689100387,0.05264249,37753.0,37752.0,0.001]
[1646689101243,0.1134,37757.0,37752.0,0.001]
[1646689101634,0.0134,37757.0,37752.0,0.001]
[1646689102232,0.30341259,37757.0,37753.0,0.00010359]
[1646689103232,0.07224762,37762.0,37760.0,0.01261486]
[1646689103434,0.66837405,37761.0,37760.0,0.01261486]
[1646689103635,0.40208,37754.0,37753.0,0.00010369]
[1646689103840,0.78619545,37754.0,37753.0,0.00010369]
[1646689104435,0.38411545,37754.0,37752.0,0.001]
[1646689104684,0.1,37753.0,37752.0,0.001]
[1646689105480,0.28411545,37754.0,37752.0,0.001]
[1646689105682,0.05550397,37757.0,37752.0,0.001]
[1646689105880,0.1,37756.0,37752.0,0.001]
[1646689106682,0.25320607,37755.0,37752.0,0.001]
[1646689106882,0.25320607,37755.0,37752.0,0.00112674]
[1646689107882,0.50617733,37755.0,37752.0,0.00112674]
[1646689109134,0.50617733,37755.0,37752.0,0.001]
[1646689109331,0.50617733,37755.0,37752.0,0.00112674]
[1646689110332,0.50617733,37755.0,37752.0,0.001]
[1646689110533,0.50617733,37755.0,37752.0,0.00112674]
[1646689110534,0.25320607,37755.0,37752.0,0.00112674]
[1646689111536,0.25320607,37755.0,37752.0,0.001]
[1646689111740,0.25320607,37755.0,37752.0,0.00111248]
[1646689112785,0.35320607,37755.0,37752.0,0.001]
[1646689112986,0.25320607,37755.0,37752.0,0.00111248]
[1646689113486,0.32935573,37758.0,37752.0,0.00111248]
[1646689113685,0.2562467,37759.0,37752.0,0.00111248]
[1646689113889,0.01324,37762.0,37752.0,0.00111248]
[1646689114087,0.36821573,37767.0,37752.0,0.301]
[1646689114088,0.01324,37766.0,37752.0,0.301]
[1646689114293,0.01324,37766.0,37753.0,0.00011248]
[1646689114491,0.2135,37767.0,37756.0,0.3075243]
[1646689114689,0.30144217,37769.0,37758.0,0.132446]
[1646689114888,0.28820217,37769.0,37759.0,0.3]
[1646689115087,0.01324,37770.0,37759.0,0.3]
[1646689115391,0.2111,37775.0,37759.0,0.3]
[1646689115392,0.01323,37773.0,37759.0,0.45896054]
[1646689115587,0.01323,37774.0,37762.0,0.00010141]
[1646689115833,0.025,37776.0,37762.0,0.13253441]
[1646689115834,0.01323,37775.0,37762.0,0.13253441]
[1646689116033,0.6724,37782.0,37764.0,0.06621]
[1646689116034,0.01323,37777.0,37764.0,0.06621]
[1646689116232,0.2471831,37777.0,37765.0,0.61210589]
[1646689116431,0.2339531,37777.0,37765.0,0.61210589]
[1646689116631,0.2339531,37777.0,37766.0,0.00010139]
[1646689117033,0.2339531,37777.0,37768.0,0.066208]
[1646689117634,0.2329531,37777.0,37768.0,0.066208]
[1646689118133,0.2829531,37777.0,37768.0,0.132416]
[1646689118334,0.05,37777.0,37770.0,0.066205]
[1646689118533,0.11323,37779.0,37770.0,0.066205]
[1646689118534,0.16323,37779.0,37770.0,0.066205]
[1646689118734,0.15,37779.0,37770.0,0.066205]
[1646689119135,0.05,37779.0,37770.0,0.066205]
[1646689119337,0.32304585,37778.0,37770.0,0.066205]
[1646689120981,0.30981585,37778.0,37770.0,0.066205]
[1646689121190,0.01323,37782.0,37772.0,0.0662]
[1646689121383,0.5177,37788.0,37777.0,0.066194]
[1646689121384,0.01323,37787.0,37777.0,0.066194]
[1646689121685,0.00014207,37787.0,37776.0,0.3]
[1646689122083,0.30003975,37786.0,37776.0,0.3]
[1646689122484,0.30003975,37786.0,37780.0,0.066188]
[1646689122485,0.35003975,37786.0,37780.0,0.066188]
[1646689122682,0.35003975,37786.0,37779.0,0.132374]
[1646689123084,0.00014193,37787.0,37780.0,0.3]
[1646689123536,0.00014193,37787.0,37780.0,0.366186]
[1646689123736,0.01323,37791.0,37780.0,0.366186]
[1646689123939,0.01323,37791.0,37782.0,0.066183]
[1646689124136,0.00014194,37787.0,37784.0,0.132349]
[1646689124335,0.00014194,37787.0,37785.0,0.3]
[1646689124542,0.00014194,37787.0,37785.0,0.32652]
[1646689124935,0.00014194,37787.0,37786.0,0.092694]
[1646689125136,0.00014194,37787.0,37786.0,0.61395455]
[1646689125339,0.00014194,37788.0,37787.0,0.02652]
[1646689125639,0.00014194,37788.0,37787.0,0.54267981]
[1646689125836,0.00014194,37788.0,37787.0,0.69557981]
[1646689126035,0.0011,37792.0,37788.0,0.02652]
[1646689126238,0.0011,37808.0,37791.0,0.15]
[1646689126442,0.0011,37808.0,37795.0,0.158824]
[1646689126443,0.00044739,37796.0,37795.0,0.158824]
[1646689126637,0.00044739,37796.0,37795.0,0.608824]
[1646689126839,0.00044739,37796.0,37795.0,0.658824]
[1646689127386,0.0011,37808.0,37800.0,0.02652]
[1646689127589,0.0004474,37803.0,37802.0,0.17652]
[1646689127790,0.0004474,37803.0,37802.0,0.47652]
[1646689127987,0.0004474,37803.0,37802.0,0.52652]
[1646689128286,0.0004474,37803.0,37802.0,0.62652]
[1646689128490,0.0011,37808.0,37802.0,0.93108076]
[1646689128686,0.00011153,37804.0,37803.0,0.09266]
[1646689129285,0.00011153,37804.0,37803.0,0.39266]
[1646689129691,0.0011,37808.0,37803.0,0.39266]
[1646689129889,0.00124967,37805.0,37804.0,0.47652]
[1646689130090,0.00059858,37811.0,37804.0,0.47652]
[1646689130091,0.00059858,37811.0,37808.0,0.02652]
[1646689130290,0.00059858,37811.0,37810.0,0.17652]
[1646689130492,0.00059858,37811.0,37810.0,0.22652]
[1646689130686,0.00059858,37811.0,37810.0,0.37942]
[1646689130938,0.00059858,37811.0,37810.0,0.7404635]
[1646689131140,0.0022,37812.0,37810.0,0.7404635]
[1646689131337,0.0022,37812.0,37811.0,0.02652]
[1646689131740,0.0022,37812.0,37811.0,0.34602193]
[1646689131940,0.0022,37812.0,37811.0,0.07942]
[1646689132139,0.0022,37812.0,37811.0,0.17942]
[1646689132344,0.0022,37812.0,37811.0,0.47942]
[1646689132941,0.00037446,37819.0,37811.0,1.28822]
[1646689133142,0.00037446,37819.0,37817.0,0.17652]
[1646689133340,0.2,37829.0,37817.0,0.52942]
[1646689133742,0.2,37829.0,37819.0,0.02652]
[1646689133743,0.1977308,37829.0,37819.0,0.02652]
[1646689133944,0.1977308,37829.0,37825.0,0.24804541]
[1646689134143,0.00057356,37833.0,37829.0,0.02652]
[1646689134344,0.01,37839.0,37833.0,1.55]
[1646689134345,7.356e-05,37834.0,37833.0,1.55]
[1646689134600,0.01,37839.0,37835.0,0.02652]
[1646689134901,0.01431,37844.0,37840.0,0.02652]
[1646689134902,0.0011,37844.0,37840.0,0.02652]
[1646689135097,0.10594621,37846.0,37843.0,0.24773636]
[1646689135098,0.09704621,37846.0,37843.0,0.24773636]
[1646689135296,0.08835143,37846.0,37845.0,0.02652]
[1646689135498,0.0999,37863.0,37845.0,0.02652]
[1646689135499,0.0132,37862.0,37847.0,0.02652]
[1646689135702,0.0999,37863.0,37857.0,0.75]
[1646689135900,0.0999,37863.0,37860.0,0.15]
[1646689136095,0.185593,37868.0,37860.0,0.15]
[1646689136096,0.185593,37868.0,37861.0,0.3529]
[1646689136294,0.185593,37868.0,37861.0,0.0529]
[1646689136494,0.175593,37868.0,37861.0,0.0529]
[1646689136697,0.70208,37867.0,37861.0,0.0529]
[1646689136896,0.3,37867.0,37861.0,0.0529]
[1646689137094,0.01319,37867.0,37861.0,0.0529]
[1646689137499,0.20998789,37865.0,37861.0,0.0529]
[1646689137697,0.01319,37867.0,37859.0,0.07337944]
[1646689137897,0.01319,37867.0,37858.0,0.0529]
[1646689138098,0.40208,37866.0,37856.0,0.0529]
[1646689138342,0.01319,37865.0,37856.0,0.0529]
[1646689138546,0.31319,37867.0,37856.0,0.0529]
[1646689138745,0.01319,37867.0,37856.0,0.0529]
[1646689138946,0.22676108,37863.0,37856.0,0.0529]
[1646689139145,0.22676108,37863.0,37851.0,0.0529]
[1646689139346,0.3,37862.0,37849.0,0.0529]
[1646689140049,0.16723351,37854.0,37849.0,0.0529]
[1646689140249,0.21494313,37856.0,37849.0,0.0529]
[1646689140447,0.45,37860.0,37849.0,0.0529]
[1646689140448,0.15,37860.0,37849.0,0.0529]
[1646689140648,0.1,37858.0,37857.0,0.6873225]
[1646689140844,0.15,37860.0,37857.0,0.6873225]
[1646689141246,0.58808113,37858.0,37857.0,0.6873225]
[1646689141445,0.18600113,37858.0,37857.0,0.6873225]
[1646689141647,0.24220408,37858.0,37857.0,0.6873225]
[1646689142094,10.0,37860.0,37857.0,0.6873225]
[1646689142291,10.0,37860.0,37857.0,1.0373225]
[1646689142493,10.0,37860.0,37857.0,0.7373225]
[1646689142691,10.0,37860.0,37859.0,0.35776858]
[1646689143187,10.0,37860.0,37857.0,0.7373225]
[1646689143388,10.0,37860.0,37857.0,0.6873225]
[1646689143594,0.3,37859.0,37857.0,0.6873225]
[1646689143892,0.17580457,37858.0,37857.0,0.6873225]
[1646689144094,0.87788457,37858.0,37857.0,0.6873225]
[1646689144291,1.47947379,37858.0,37857.0,0.6873225]
[1646689144594,1.47947379,37858.0,37834.0,0.217]
[1646689144595,2.00208,37857.0,37834.0,0.217]
[1646689144795,0.19552444,37835.0,37825.0,0.4671]
[1646689144994,1.812,37856.0,37828.0,0.5]
[1646689144995,0.3,37834.0,37828.0,0.5]
[1646689145189,0.40167476,37833.0,37828.0,0.5]
[1646689145394,0.40167476,37833.0,37819.0,0.001]
[1646689145592,0.24854726,37831.0,37819.0,0.001]
[1646689145858,0.54854726,37831.0,37819.0,0.001]
[1646689146064,0.21252286,37826.0,37819.0,0.001]
[1646689146257,0.505034,37825.0,37819.0,0.001]
[1646689146459,0.16680522,37825.0,37819.0,0.001]
[1646689146658,0.23966258,37822.0,37819.0,0.001]
[1646689146859,0.14,37820.0,37819.0,0.001]
[1646689147060,0.30529145,37820.0,37819.0,0.001]
[1646689147257,0.16529145,37820.0,37819.0,0.001]
[1646689147459,0.37126262,37820.0,37819.0,0.001]
[1646689147857,0.46529145,37820.0,37819.0,0.001]
[1646689148262,1.6,37819.0,37795.0,0.4673]
[1646689148460,0.5029,37818.0,37794.0,0.4459]
[1646689148661,0.5029,37818.0,37791.0,0.01]
[1646689148662,0.15,37811.0,37791.0,0.01]
[1646689148861,1.56326622,37811.0,37791.0,0.01]
[1646689149259,1.77975617,37811.0,37791.0,0.01]
[1646689149459,1.77975617,37811.0,37791.0,0.31842092]
[1646689150088,1.77975617,37811.0,37791.0,0.01]
[1646689150290,2.23189017,37811.0,37791.0,0.01]
[1646689150492,0.8088,37806.0,37805.0,0.00013558]
[1646689150695,0.8088,37804.0,37791.0,0.01]
[1646689150890,0.8088,37800.0,37791.0,0.01]
[1646689151089,0.25143474,37792.0,37791.0,0.01]
[1646689151292,0.15,37797.0,37792.0,0.16698216]
[1646689151491,0.11655166,37793.0,37792.0,0.16698216]
[1646689151690,0.56728566,37793.0,37792.0,0.16698216]
[1646689151890,0.56728566,37793.0,37781.0,0.001]
[1646689151891,0.17838166,37793.0,37781.0,0.001]
[1646689152091,0.36183,37793.0,37781.0,0.001]
[1646689152293,0.30631507,37786.0,37781.0,0.001]
[1646689152494,0.0486,37785.0,37781.0,0.001]
[1646689152794,0.25,37795.0,37781.0,0.001]
[1646689152795,0.0486,37784.0,37781.0,0.001]
[1646689152990,0.0486,37783.0,37781.0,0.001]
[1646689153193,0.1,37791.0,37783.0,0.09719999]
[1646689153438,0.0486,37790.0,37783.0,0.09719999]
[1646689153636,0.27935098,37788.0,37783.0,0.09719999]
[1646689153840,0.0486,37787.0,37783.0,0.09719999]
[1646689155142,0.0486,37787.0,37783.0,0.0973353]
[1646689156142,0.0486,37787.0,37783.0,0.09719999]
[1646689156341,0.0486,37787.0,37783.0,0.0973353]
[1646689157107,0.0486,37787.0,37786.0,0.001]
[1646689157299,0.0486,37787.0,37783.0,0.0910353]
[1646689157501,0.0486,37787.0,37783.0,0.09089999]
[1646689157700,0.0486,37787.0,37785.0,0.00013531]
[1646689158003,0.3,37792.0,37785.0,0.00013531]
[1646689158198,0.32134425,37793.0,37785.0,0.00013531]
[1646689158605,0.0486,37793.0,37785.0,0.06678]
[1646689158798,0.0486,37793.0,37787.0,0.0001353]
[1646689159501,0.4,37801.0,37790.0,0.31001045]
[1646689159502,0.01323,37800.0,37790.0,0.31001045]
[1646689159699,0.31176871,37801.0,37787.0,0.0663023]
[1646689159700,0.0486,37799.0,37787.0,0.0663023]
[1646689159900,0.31176871,37801.0,37785.0,0.63979]
[1646689160100,0.30676871,37801.0,37793.0,0.00012175]
[1646689160701,0.0641497,37799.0,37793.0,0.00012175]
[1646689160958,0.15,37794.0,37781.0,0.001]
[1646689161144,0.22813311,37789.0,37781.0,0.001]
[1646689161745,0.66795533,37795.0,37784.0,0.3025297]
[1646689161945,0.06183,37795.0,37784.0,0.3025297]
[1646689162148,0.0486,37795.0,37782.0,0.06312]
[1646689162346,0.16322966,37793.0,37782.0,0.06312]
[1646689162547,0.0486,37799.0,37781.0,0.001]
[1646689162744,0.0486,37799.0,37785.0,0.07319376]
[1646689162745,0.21266475,37796.0,37785.0,0.07319376]
[1646689163146,0.26222781,37795.0,37785.0,0.07319376]
[1646689163346,0.26222781,37795.0,37783.0,0.38162954]
[1646689163551,0.19542251,37793.0,37783.0,0.38162954]
[1646689163748,0.1,37798.0,37788.0,0.000135]
[1646689164148,0.15,37803.0,37801.0,0.2972]
[1646689164590,0.402134,37802.0,37801.0,0.2972]
[1646689164789,0.52094829,37802.0,37801.0,0.2972]
[1646689164988,0.8101102,37802.0,37801.0,0.2972]
[1646689165990,0.01322,37805.0,37801.0,0.2972]
[1646689166208,0.01322,37810.0,37801.0,0.39471]
[1646689166392,0.465,37816.0,37801.0,0.39471]
[1646689166393,0.01322,37811.0,37801.0,0.39471]
[1646689166591,0.82202,37815.0,37801.0,0.39471]
[1646689166792,0.82202,37815.0,37802.0,0.3]
[1646689166793,0.01322,37815.0,37802.0,0.3]
[1646689166991,0.15,37819.0,37802.0,0.3]
[1646689166992,0.25982459,37812.0,37802.0,0.59024142]
[1646689167191,0.27304459,37812.0,37803.0,0.00013495]
[1646689167493,0.402134,37811.0,37803.0,0.00013495]
[1646689167694,0.27304459,37812.0,37803.0,0.00013495]
[1646689168093,0.1968425,37805.0,37803.0,0.00013495]
[1646689168339,0.26990419,37804.0,37801.0,0.2972]
[1646689168539,0.26990419,37804.0,37803.0,0.00012651]
[1646689168741,0.25990419,37804.0,37803.0,0.00012651]
[1646689169342,0.66203819,37804.0,37803.0,0.00012651]
[1646689169541,0.66203819,37804.0,37801.0,0.2972]
[1646689169542,1.03116225,37803.0,37801.0,0.2972]
[1646689169740,0.402134,37802.0,37801.0,0.2972]
[1646689169938,0.402134,37802.0,37801.0,0.3172]
[1646689170138,0.502134,37802.0,37801.0,0.3172]
[1646689170339,0.642134,37802.0,37801.0,0.3172]
[1646689170539,0.8932967,37802.0,37801.0,0.3172]
[1646689170940,0.4911627,37802.0,37801.0,0.3172]
[1646689171345,0.3511627,37802.0,37801.0,0.3172]
[1646689171540,0.7532967,37802.0,37801.0,0.3172]
[1646689171939,0.3511627,37802.0,37801.0,0.3172]
[1646689172198,0.6532967,37802.0,37801.0,0.3172]
[1646689172398,0.3581627,37802.0,37801.0,0.3172]
[1646689173599,0.3511627,37802.0,37801.0,0.3172]
[1646689173796,0.2511627,37802.0,37801.0,0.3172]
[1646689174002,0.2511627,37802.0,37800.0,0.00012658]
[1646689174003,1.6,37801.0,37800.0,0.00012658]
[1646689174202,1.7,37801.0,37786.0,0.3]
[1646689174397,1.7,37801.0,37784.0,0.3]
[1646689174398,2.5088,37801.0,37784.0,0.3]
[1646689174597,2.5088,37801.0,37799.0,0.00012658]
[1646689174598,2.57498771,37801.0,37799.0,0.00012658]
[1646689174899,1.76618771,37801.0,37799.0,0.00012658]
[1646689175600,0.30450283,37794.0,37786.0,0.3]
[1646689175837,0.30450283,37794.0,37785.0,0.30278573]
[1646689176033,0.30450283,37794.0,37786.0,0.3]
[1646689176933,0.30450283,37794.0,37788.0,0.00010651]
[1646689177933,0.30450283,37794.0,37786.0,0.35]
[1646689178134,0.30450283,37794.0,37789.0,0.00010651]
[1646689179037,0.07940905,37800.0,37786.0,0.3]
[1646689179243,0.07940905,37800.0,37795.0,0.07222727]
[1646689179244,0.01323,37800.0,37795.0,0.07222727]
[1646689179439,0.2,37807.0,37796.0,0.3]
[1646689179695,0.025,37812.0,37796.0,0.35]
[1646689179889,0.025,37812.0,37801.0,0.28528821]
[1646689179890,0.27800893,37810.0,37801.0,0.28528821]
[1646689180090,0.20989945,37809.0,37801.0,0.28528821]
[1646689180489,0.27800893,37810.0,37801.0,0.28528821]
[1646689180490,0.27800893,37810.0,37803.0,0.00011126]
[1646689181290,9.71460053,37800.0,37798.0,0.3]
[1646689181592,9.71460053,37800.0,37794.0,0.05]
[1646689181794,9.71460053,37800.0,37793.0,0.132311]
[1646689181795,9.71460053,37800.0,37793.0,0.15]
[1646689182390,9.71460053,37800.0,37791.0,0.01322]
[1646689182592,9.71460053,37800.0,37791.0,0.55397348]
[1646689182795,9.71460053,37800.0,37793.0,0.02652]
[1646689182990,9.71460053,37800.0,37793.0,0.32652]
[1646689183188,9.71460053,37800.0,37792.0,0.17652]
[1646689183440,9.71460053,37800.0,37792.0,0.15]
[1646689183844,9.88294768,37800.0,37792.0,0.15]
[1646689184140,9.88294768,37800.0,37792.0,0.05]
[1646689184550,0.402134,37799.0,37783.0,0.09089999]
[1646689184746,0.1,37799.0,37783.0,0.09089999]
[1646689185140,0.18678855,37789.0,37783.0,0.09089999]
[1646689186442,0.18678855,37789.0,37784.0,0.00013474]
[1646689186644,0.29127821,37791.0,37784.0,0.00013474]
[1646689187084,0.30685716,37792.0,37784.0,0.00013474]
[1646689187483,0.30685716,37792.0,37783.0,0.09089999]
[1646689187683,0.19735014,37791.0,37786.0,0.00013473]
[1646689188686,0.19735014,37791.0,37783.0,0.09089999]
[1646689188883,0.45983839,37791.0,37787.0,0.00013473]
[1646689189083,0.19735014,37791.0,37787.0,0.00013473]
[1646689189787,0.402134,37790.0,37787.0,0.00013473]
[1646689189987,0.19735014,37791.0,37783.0,0.09089999]
[1646689190384,0.002,37790.0,37783.0,0.09089999]
[1646689190839,0.21557168,37785.0,37783.0,0.09089999]
[1646689191041,0.2166644,37787.0,37785.0,0.43114335]
[1646689191239,0.402134,37786.0,37785.0,0.43126908]
[1646689191644,0.56870608,37786.0,37785.0,0.43126908]
[1646689191940,0.68193608,37786.0,37785.0,0.43126908]
[1646689192144,1.17342111,37786.0,37785.0,0.43126908]
[1646689192339,1.17342111,37786.0,37785.0,0.43114335]
[1646689192539,1.31742111,37786.0,37785.0,0.43114335]
[1646689192739,1.31671607,37786.0,37785.0,0.43114335]
[1646689192939,1.30348607,37786.0,37785.0,0.43114335]
[1646689193642,1.34948607,37786.0,37785.0,0.43114335]
[1646689193841,1.36271607,37786.0,37785.0,0.43114335]
[1646689194140,1.19000199,37786.0,37785.0,0.43114335]
[1646689194342,0.69851696,37786.0,37785.0,0.43114335]
[1646689194597,0.11323,37786.0,37785.0,0.43114335]
[1646689194804,0.0486,37790.0,37785.0,0.43114335]
[1646689194997,0.402151,37789.0,37785.0,0.43114335]
[1646689195196,0.0486,37790.0,37785.0,0.43114335]
[1646689195596,0.402151,37789.0,37785.0,0.43114335]
[1646689196094,0.402151,37789.0,37785.0,0.43126917]
[1646689196496,0.6563924,37789.0,37785.0,0.43126917]
[1646689196896,0.003,37789.0,37785.0,0.43126917]